{"text_format":"1","workbook":"xlsx","n_sheets":2,"sheets":["ورقة1","ورقة2"],"not_rendered":{"charts":0,"images":0,"macros":0,"external_links":0,"defined_names":0,"comments":0,"pivot_tables":0},"unopened":[],"bounds":{"document_bytes":16777216,"sheet_cells":100000,"rows_first":2000,"rows_last":500,"rows_between":2000,"halvings":0,"cell_chars":16384,"cell_head_chars":4096},"cells_cut":0,"cells_raw":0,"read":"whole","date_system":"1900"}

{"sheet":"ورقة1","index":0,"n_rows":42,"n_cols":9,"rows_kept":42,"cut":false,"hidden":false,"merged":[[0,1,0,8],[1,0,2,0],[1,1,1,2],[1,3,1,4],[1,5,1,7],[1,8,2,8]]}
["التاريخ"]
["الصنف","صرف",null,"مرتجع",null,"البيع",null,null,"القيمة بالجنيه"]
[null,"كرتونة","علبة","كرتونة","علبة","كرتونة","علبة","السعر"]
["كوماندا مغطس ابيض ب2ج",null,null,null,null,null,{"$f":"(B4*12)+C4-((D4*12)+E4)","v":0},10,{"$f":"H4*G4","v":0}]
["كوماندا مغطس بنى ب2ج",null,null,null,null,null,{"$f":"(B5*12)+C5-((D5*12)+E5)","v":0},10,{"$f":"H5*G5","v":0}]
["كوماندا شيكولاتة ب 1 ج",null,null,null,null,null,0,10,0]
["كوماندا حليب ب 1 ج",null,null,null,null,null,0,10,0]
["كوماندا برتقال  1 ج",null,null,null,null,null,0,10,0]
["كوماندا فراولة ب 1 ج",null,null,null,null,null,0,10,0]
["كوكاتش شيكولاتة ب 1 ج",null,null,null,null,null,0,10,0]
["كوماندا بيور شيكولاتةب 2 ج",null,null,null,null,null,0,10,0]
["كوماندا بيور حليب ب 2 ج",null,null,null,null,null,0,10,0]
["كوماندا بيور اكسترا ب 2 ج",null,null,null,null,null,0,10,0]
["كوماندا بيور فراولة  2 ج",null,null,null,null,null,0,10,0]
["كوماندا بيور حلاوة ب 2 ج",null,null,null,null,null,0,10,0]
["سادة فانليا --اكياس ( 8 كيس * 800 جرام)",null,null,null,null,null,0,25,0]
["بيدو سندوتش ب 2 ج",null,null,null,null,null,0,20,0]
["افتر سفن زبدة ب 2 ج",null,null,null,null,null,0,25,0]
["افتر سفن حليب ب 2 ج",null,null,null,null,null,0,25,0]
["بيدو ب 1 ج",null,null,null,null,null,0,10,0]
["كوماندا سادة شاى ب 2 ج (12*12) جوز هند",null,null,null,null,null,0,20,0]
["كوماندا سادة شاى ب 2 ج (12*12) فانليا",null,null,null,null,null,0,20,0]
["ميك ماك عسل ب 1 ج ",null,null,null,null,null,0,10,0]
["ميك ماك بنى ب 1 ج ",null,null,null,null,null,0,10,0]
["كيك بيور مغطس بنى ب2 ج",null,null,null,null,null,0,20,0]
["كيك بيور مغطس ابيض ب2 ج",null,null,null,null,null,0,20,0]
["كيك بيور فراولة ب2 ج",null,null,null,null,null,0,20,0]
["كيك مغطس ابيض ب 1 ج",null,null,null,null,null,0,10,0]
["كيك مغطس بنى ب 1 ج",null,null,null,null,null,0,10,0]
["كيكتى شيكولاتة ب 1 ج",null,null,null,null,null,0,10,0]
["كيكتى فانليا ب 1 ج",null,null,null,null,null,0,10,0]
["كيكتى فراولة ب 1 ج",null,null,null,null,null,0,10,0]
["افتر سفن مغطس ابيض(10*12)",null,null,null,null,null,{"$f":"(B33*10)+C33-((D33*10)+E33)","v":0},10,0]
["افتر سفن مغطس بنى(10*12)",null,null,null,null,null,{"$f":"(B34*10)+C34-((D34*10)+E34)","v":0},10,0]
["افتر سفن ويفر شيكولاتة(10*12)موف",null,null,null,null,null,0,10,0]
["افتر سفن ويفر شيكولاتة(10*12)احمر",null,null,null,null,null,0,10,0]
["كيك افتر سفن مغطس بنى(10*12) ب 3ج",null,null,null,null,null,0,15,0]
["كيك افتر سفن فراولة(10*12) ب3ج",null,null,null,null,null,0,15,0]
["افتر سفن مغطس بنى(10*12) ب3ج",null,null,null,null,null,0,15,0]
["بيدو ب 2 ج",null,null,null,null,null,0,20,0]
["دى جى كمون",null,null,null,null,null,0,10,0]
["الاجمالى",null,null,{"$f":"SUM(D4:D41)","v":0},{"$f":"SUM(E4:E41)","v":0},{"$f":"SUM(F4:F41)","v":0},0,null,{"$f":"SUM(I4:I41)","v":0}]

{"sheet":"ورقة2","index":1,"n_rows":0,"n_cols":0,"rows_kept":0,"cut":false,"hidden":false,"merged":[]}